fUSD/lending_fUSD_20260418
["ID","MTS","AMOUNT","RATE_DAILY","PERIOD"]
[420674282,1776455989020,-500.0,0.00044822,120]
[420674283,1776455989067,-500.0,0.00044822,120]
[420674284,1776455989111,-500.0,0.00044822,120]
[420674285,1776455989158,-500.0,0.00044822,120]
[420674286,1776455989203,-500.0,0.00044822,120]
[420674287,1776455989251,-500.0,0.00044822,120]
[420674288,1776455989297,-500.0,0.00044822,120]
[420674289,1776455989343,-500.0,0.00044822,120]
[420674290,1776455989388,-500.0,0.00044822,120]
[420674291,1776455989434,-500.0,0.00044822,120]
[420674292,1776455989481,-500.0,0.00044822,120]
[420674293,1776455989529,-500.0,0.00044822,120]
[420674294,1776455989576,-500.0,0.00044822,120]
[420674295,1776455989622,-499.85387174,0.00044822,120]
[420674296,1776455989670,-1779.26,0.00044822,120]
[420674297,1776455989717,-500.0,0.00044822,120]
[420674298,1776455989763,-500.0,0.00044822,120]
[420674299,1776455989808,-500.0,0.00044822,120]
[420674300,1776455989855,-423.92622051,0.00044822,120]
[420674301,1776455989903,-1779.26,0.00044822,120]
[420674302,1776455989951,-500.0,0.00044822,120]
[420674303,1776455989997,-1779.26,0.00044822,120]
[420674304,1776455990044,-500.0,0.00044822,120]
[420674305,1776455990089,-1779.26,0.00044822,120]
[420674306,1776455990135,-500.0,0.00044822,120]
[420674307,1776455990180,-1779.26,0.00044822,120]
[420674308,1776455990225,-500.0,0.00044822,120]
[420674309,1776455990271,-811.14,0.00044822,120]
[420674310,1776455990316,-1779.26,0.00044822,120]
[420674311,1776455990362,-500.0,0.00044822,120]
[420674312,1776455990409,-811.14,0.00044822,120]
[420674313,1776455990720,-500.0,0.00044822,120]
[420674314,1776455990768,-811.14,0.00044822,120]
[420674315,1776455990815,-500.0,0.00044822,120]
[420674316,1776455990862,-811.14,0.00044822,120]
[420674317,1776455990909,-1779.26,0.00044822,120]
[420674318,1776455990956,-500.0,0.00044822,120]
[420674319,1776455991005,-1779.26,0.00044822,120]
[420674320,1776455991052,-811.14,0.00044822,120]
[420674321,1776455991100,-643.94269753,0.00044822,120]
[420674322,1776455991146,-1779.26,0.00044822,120]
[420674323,1776455991192,-811.14,0.00044822,120]
[420674324,1776455991238,-1779.26,0.00044822,120]
[420674325,1776455991284,-811.14,0.00044822,120]
[420674326,1776455991331,-1011.94,0.00044822,120]
[420674327,1776455991377,-1779.26,0.00044822,120]
[420674328,1776455991424,-811.14,0.00044822,120]
[420674329,1776455991470,-1012.09494163,0.00044822,120]
[420674330,1776455991518,-1779.26,0.00044822,120]
[420674331,1776455991566,-811.14,0.00044822,120]
[420674332,1776455991617,-969.78,0.00044822,120]
[420674333,1776455991665,-1779.26,0.00044822,120]
[420674334,1776455991715,-811.14,0.00044822,120]
[420674335,1776455991762,-969.78,0.00044822,120]
[420674336,1776455991810,-1779.26,0.00044822,120]
[420674337,1776455991858,-811.14,0.00044822,120]
[420674338,1776455991905,-969.78,0.00044822,120]
[420674339,1776455991951,-1779.26,0.00044822,120]
[420674340,1776455991999,-459.91594269,0.00044822,120]
[420674341,1776456018182,164.15,6.361e-05,2]
[420674342,1776456021727,-181.54903745,0.000135,60]
[420674343,1776456021843,-151.0,0.000145,60]
[420674344,1776456021905,-151.0,0.000155,60]
[420674345,1776456021984,-151.0,0.000165,60]
[420674346,1776456022038,-150.0,0.00016618,120]
[420674347,1776456022092,-150.0,0.00016851,120]
[420674348,1776456022146,-0.85195099,0.00017,120]
[420674349,1776456022203,-150.0,0.00017196,120]
[420674350,1776456022263,-150.0,0.00017472,120]
[420674351,1776456022319,-341.6,0.000178,120]
[420674352,1776456022375,-332.92,0.000178,120]
[420674353,1776456022430,-150.0,0.00017908,120]
[420674354,1776456022489,-150.0,0.00018877,120]
[420674355,1776456022544,-150.0,0.0001903,120]
[420674356,1776456022603,-800.0,0.00019178,62]
[420674357,1776456022657,-150.0,0.00019367,120]
[420674358,1776456022712,-646.0164876,0.0001938,120]
[420674359,1776456022767,-1213.0,0.0001938,120]
[420674360,1776456022820,-728.0,0.0001938,120]
[420674361,1776456022873,-437.0,0.0001938,120]
[420674362,1776456022928,-150.0,0.00019579,120]
[420674363,1776456022983,-150.0,0.00019693,120]
[420674364,1776456023037,-150.0,0.00019738,120]
[420674365,1776456023090,-1860.74067993,0.0002,120]
[420674366,1776456023141,-733.54496744,0.0002,120]
[420674367,1776456023191,-360.0,0.0002,120]
[420674368,1776456023240,-360.0,0.0002,120]
[420674369,1776456023290,-360.0,0.0002,120]
[420674370,1776456023340,-300.0,0.0002,120]
[420674371,1776456023391,-1843.13096299,0.0002,120]
[420674372,1776456023442,-312.72230926,0.0002,120]
[420674373,1776456023491,-307.08524689,0.0002,120]
[420674374,1776456023539,-2273.39574692,0.0002,120]
[420674375,1776456023591,-212.54,0.0002003,120]
[420674376,1776456023644,-2023.0,0.00020349,120]
[420674377,1776456023695,-1213.0,0.00020349,120]
[420674378,1776456023744,-728.0,0.00020349,120]
[420674379,1776456023793,-437.0,0.00020349,120]
[420674380,1776456023843,-3914.0,0.00020349,120]
[420674381,1776456023892,-150.0,0.0002038,120]
[420674382,1776456023943,-2108.0,0.000204,120]
[420674383,1776456023991,-800.0,0.00020548,72]
[420674384,1776456024044,-318.82,0.00021182,120]
[420674385,1776456024094,-150.0,0.00021189,120]
[420674386,1776456024142,-2023.0,0.00021366,120]
[420674387,1776456024191,-1213.0,0.00021366,120]
[420674388,1776456024240,-728.0,0.00021366,120]
[420674389,1776456024288,-437.0,0.00021366,120]
[420674390,1776456024339,-3914.0,0.00021366,120]
[420674391,1776456024389,-2108.0,0.0002142,120]
[420674392,1776456024439,-150.0,0.00021424,120]
[420674393,1776456024488,-150.0,0.00021515,120]
[420674394,1776456024538,-150.0,0.00021856,120]
[420674395,1776456024597,-151.0,0.000223,120]
[420674396,1776456024647,-150.0,0.00022329,120]
[420674397,1776456025017,-425.09,0.00022334,120]
[420674398,1776456025068,-2023.0,0.00022435,120]
[420674399,1776456025117,-1213.0,0.00022435,120]
[420674400,1776456025166,-728.0,0.00022435,120]
[420674401,1776456025215,-437.0,0.00022435,120]
[420674402,1776456025264,-3914.0,0.00022435,120]
[420674403,1776456025311,-306.12722233,0.00022448,60]
[420674404,1776456025359,-150.0,0.00022448,120]
[420674405,1776456025407,-150.0,0.00022486,120]
[420674406,1776456025454,-2108.0,0.00022491,120]
[420674407,1776456025502,-150.0,0.00022862,120]
[420674408,1776456025550,-207.38531474,0.00023,117]
[420674409,1776456025599,-150.0,0.00023003,120]
[420674410,1776456025648,-150.0,0.0002304,120]
[420674411,1776456025697,-800.0,0.00023288,92]
[420674412,1776456025747,-531.36,0.00023486,120]
[420674413,1776456025796,-437.0,0.00023557,120]
[420674414,1776456025846,-150.0,0.00023661,120]
[420674415,1776456025895,-150.0,0.00023705,120]
[420674416,1776456025944,-362.09775007,0.00023878,60]
[420674417,1776456025995,-201.78198406,0.0002395,60]
[420674418,1776456026048,-231.23961904,0.00024288,60]
[420674419,1776456026098,-202.33466667,0.00024288,60]
[420674420,1776456026147,-150.0,0.00024441,120]
[420674421,1776456026195,-825.0,0.00024513,60]
[420674422,1776456026248,-637.63,0.00024638,120]
[420674423,1776456026296,-800.0,0.00024658,102]
[420674424,1776456026348,-437.0,0.00024734,120]
[420674425,1776456026397,-150.0,0.00024897,120]
[420674426,1776456026445,-500.0,0.0002494,120]
[420674427,1776456026495,-222.89702822,0.00025,120]
[420674428,1776456026545,-436.57857954,0.00025,60]
[420674429,1776456026595,-800.0,0.00025,120]
[420674430,1776456026645,-500.97312567,0.00025,60]
[420674431,1776456026695,-231.23961904,0.00025067,60]
[420674432,1776456026745,-202.33466667,0.00025067,60]
[420674433,1776456026794,-150.0,0.00025257,120]
[420674434,1776456026842,-151.39560369,0.00025349,60]
[420674435,1776456026890,-362.09775007,0.00025353,60]
[420674436,1776456026938,-150.0,0.00025438,120]
[420674437,1776456026987,-201.78198406,0.0002544,60]
[420674438,1776456027035,-172.23240083,0.00025464,60]
[420674439,1776456027080,-150.0,0.0002547,120]
[420674440,1776456027126,-500.0,0.00025557,120]
[420674441,1776456027174,-743.91,0.0002579,120]
[420674442,1776456027228,-2589.43182697,0.00025816,82]
[420674443,1776456027277,-231.23961904,0.00025846,60]
[420674444,1776456027325,-202.33466667,0.00025846,60]
[420674445,1776456027373,-206.91300005,0.00025969,120]
[420674446,1776456027421,-437.0,0.00025971,120]
[420674447,1776456027468,-500.0,0.00026,61]
[420674448,1776456027514,-800.0,0.00026027,112]
[420674449,1776456027562,-203.53203155,0.00026064,120]
[420674450,1776456027609,-153.95647398,0.00026077,120]
[420674451,1776456027656,-500.0,0.00026174,120]
[420674452,1776456027707,-230.60798182,0.00026177,120]
[420674453,1776456027755,-150.0,0.00026225,120]
[420674454,1776456027802,-151.39560367,0.00026329,120]
[420674455,1776456027851,-289.29049917,0.00026346,120]
[420674456,1776456027899,-271.94228247,0.00026363,120]
[420674457,1776456027947,-151.09206114,0.00026391,120]
[420674458,1776456027997,-150.0,0.00026391,120]
[420674459,1776456028046,-5000.0,0.00026571,120]
[420674460,1776456028095,-5000.0,0.00026571,120]
[420674461,1776456028141,-213.16643899,0.00026607,120]
[420674462,1776456028189,-231.23961904,0.00026625,120]
[420674463,1776456028237,-202.33466667,0.00026625,120]
[420674464,1776456028284,-825.0,0.0002677,60]
[420674465,1776456028332,-150.0,0.00026781,120]
[420674466,1776456028379,-500.0,0.00026792,120]
[420674467,1776456028425,-362.09775007,0.00026829,120]
[420674468,1776456028474,-169.73828849,0.00026859,120]
[420674469,1776456028525,-5000.0,0.00026898,120]
[420674470,1776456028576,-201.78198406,0.00026931,120]
[420674471,1776456028628,-850.18,0.00026942,120]
[420674472,1776456028681,-800.0,0.00026986,120]
[420674473,1776456028731,-679.75,0.00026986,120]
[420674474,1776456028784,-500.0,0.00027,62]
[420674475,1776456028837,-500.0,0.00027096,120]
[420674476,1776456028895,-333.0,0.00027123,120]
[420674477,1776456028946,-268.8184849,0.00027136,120]
[420674478,1776456028997,-437.0,0.0002727,120]
[420674479,1776456029048,-1581.63157895,0.0002737,120]
[420674480,1776456029100,-1581.63157895,0.0002737,120]
[420674481,1776456029148,-1384.42681105,0.0002737,120]
[420674482,1776456029195,-342.2014111,0.0002737,120]
[420674483,1776456029240,-561.51586375,0.0002737,120]
[420674484,1776456029288,-2383.57894737,0.0002737,120]
[420674485,1776456029337,-795.66148003,0.0002737,120]
[420674486,1776456029387,-412.33400877,0.0002737,120]
[420674487,1776456029438,-2114.52631579,0.0002737,120]
[420674488,1776456029486,-1613.15,0.0002737,120]
[420674489,1776456029536,-1613.15,0.0002737,120]
[420674490,1776456029587,-477.09475401,0.0002737,120]
[420674491,1776456029636,-333.0,0.0002737,120]
[420674492,1776456029686,-2000.0,0.0002739,120]
[420674493,1776456029734,-151.60528139,0.0002739,120]
[420674494,1776456029783,-150.0,0.00027396,120]
[420674495,1776456029833,-1000.0,0.00027397,120]
[420674496,1776456029882,-600.0,0.00027397,120]
[420674497,1776456029930,-600.0,0.00027397,120]
[420674498,1776456029984,-437.78,0.00027397,120]
[420674499,1776456030033,-150.0,0.00027401,120]
[420674500,1776456030363,-500.0,0.00027409,120]
[420674501,1776456030412,-333.0,0.00027616,120]
[420674502,1776456030463,-150.0,0.00027645,120]
[420674503,1776456030513,-269.89909875,0.00027973,120]
[420674504,1776456030561,-150.0,0.00027973,120]
[420674505,1776456030611,-150.0,0.00028,120]
[420674506,1776456030659,-1126.0,0.00028,60]
[420674507,1776456030705,-1000000.0,0.00028,120]
[420674508,1776456030754,-500.0,0.00028026,120]
[420674509,1776456030804,-956.45,0.00028095,120]
[420674510,1776456030859,-244.48611865,0.00028297,120]
[420674511,1776456030909,-1000.0,0.000284,120]
[420674512,1776456030961,-437.0,0.00028633,120]
[420674513,1776456031009,-500.0,0.00028643,120]
[420674514,1776456031059,-150.0,0.00028746,120]
[420674515,1776456031107,-500.0,0.00028767,120]
[420674516,1776456031157,-500.0,0.00028767,120]
[420674517,1776456031206,-500.0,0.00028767,120]
[420674518,1776456031257,-500.0,0.00028767,120]
[420674519,1776456031308,-500.0,0.00028767,120]
[420674520,1776456031362,-500.0,0.00028767,120]
[420674521,1776456031413,-636.50226924,0.00028767,120]
[420674522,1776456031465,-150.0,0.00029,120]
[420674523,1776456031519,-825.0,0.00029026,60]
[420674524,1776456031573,-150.0,0.00029135,120]
[420674525,1776456031625,-1018.98209977,0.00029247,120]
[420674526,1776456031676,-500.0,0.00029261,120]
[420674527,1776456031726,-150.0,0.00029404,120]
[420674528,1776456031773,-1047037.47151069,0.000295,120]
[420674529,1776456031822,-362777.06862239,0.000295,120]
[420674530,1776456031871,-220262.39564894,0.000295,120]
[420674531,1776456031919,-347.34,0.00029607,60]
[420674532,1776456031968,-150.0,0.00029709,120]
[420674533,1776456032016,-500.0,0.00029878,120]
[420674534,1776456032066,-544.53020262,0.00029888,120]
[420674535,1776456032114,-216.63733789,0.000299,120]
[420674536,1776456032163,-3054.53,0.000299,120]
[420674537,1776456032215,-150.0,0.00029939,120]
[420674538,1776456032272,-150.0,0.00029949,120]
[420674539,1776456032322,-1035.42559641,0.00029999,120]
[420674540,1776456032373,-1000.0,0.0003,120]
[420674541,1776456032422,-600.0,0.0003,120]
[420674542,1776456032472,-700.0,0.0003,120]
[420674543,1776456032521,-384.0,0.0003,120]
[420674544,1776456032572,-166.46257807,0.0003,120]
[420674545,1776456032625,-174.65562092,0.0003,60]
[420674546,1776456032677,-2000.0,0.0003,120]
[420674547,1776456032736,-1656.07,0.0003,120]
[420674548,1776456032794,-5000.0,0.0003,60]
[420674549,1776456032845,-1000.0,0.0003,120]
[420674550,1776456032897,-160.12996451,0.0003,120]
[420674551,1776456032947,-1223.426868,0.0003,120]
[420674552,1776456032997,-5845.24319362,0.0003,120]
[420674553,1776456033045,-896.64475552,0.0003,120]
[420674554,1776456033092,-1390.2468284,0.0003,120]
[420674555,1776456033138,-643.89794784,0.0003,120]
[420674556,1776456033186,-166.0,0.0003,120]
[420674557,1776456033235,-168.51194651,0.0003,120]
[420674558,1776456033284,-552.62316004,0.0003,120]
[420674559,1776456033332,-1019.72494403,0.0003,120]
[420674560,1776456033381,-2000.0,0.0003,120]
[420674561,1776456033430,-544.85,0.0003,120]
[420674562,1776456033479,-1000.0,0.0003,120]
[420674563,1776456033529,-1003.86,0.0003,60]
[420674564,1776456033578,-9848.999999,0.0003,60]
[420674565,1776456033630,-150.0,0.0003,120]
[420674566,1776456033682,-556.28343297,0.0003,120]
[420674567,1776456033732,-4600.0,0.0003,120]
[420674568,1776456033780,-4607.9432826,0.0003,120]
[420674569,1776456033830,-160.0,0.0003,120]
[420674570,1776456033882,-437.0,0.00030065,120]
[420674571,1776456033935,-1896.3,0.00030082,120]
[420674572,1776456033984,-398.71928042,0.0003013,120]
[420674573,1776456034033,-295.78210889,0.0003013,120]
[420674574,1776456034082,-187.6986272,0.0003013,120]
[420674575,1776456034131,-4341.01739264,0.0003013,120]
[420674576,1776456034179,-211.0,0.00030137,120]
[420674577,1776456034228,-1000.0,0.00030137,120]
[420674578,1776456034277,-600.0,0.00030137,120]
[420674579,1776456034326,-600.0,0.00030137,120]
[420674580,1776456034376,-600.0,0.00030411,120]
[420674581,1776456034424,-500.0,0.00030495,120]
[420674582,1776456034470,-861.10384664,0.000305,120]
[420674583,1776456034519,-229.9,0.000309,120]
[420674584,1776456034567,-236.08,0.00031,120]
[420674585,1776456034617,-150.0,0.00031,120]
[420674586,1776456034667,-3901.07,0.00031065,120]
[420674587,1776456034716,-500.0,0.00031112,120]
[420674588,1776456034769,-825.0,0.00031283,60]
[420674589,1776456034819,-1032.55962,0.000313,120]
[420674590,1776456034868,-1747.0,0.000314,120]
[420674591,1776456034918,-150.0,0.00031607,120]
[420674592,1776456034965,-500.0,0.00031729,120]
[420674593,1776456035014,-150.0,0.00031996,120]
[420674594,1776456035063,-176.12871079,0.00032,120]
[420674595,1776456035111,-1000.0,0.00032,120]
[420674596,1776456035158,-1000.0,0.00032,120]
[420674597,1776456035206,-1000.0,0.00032,120]
[420674598,1776456035254,-150.0,0.00032,120]
[420674599,1776456035301,-3665.83,0.00032,120]
[420674600,1776456035349,-150.0,0.00032089,120]
[420674601,1776456035396,-1665.78,0.00032143,120]
[420674602,1776456035442,-300.0,0.000322,120]
[420674603,1776456035491,-280.17946033,0.00032205,120]
[420674604,1776456035932,-1665.78,0.00032296,120]
[420674605,1776456035978,-500.0,0.00032347,120]
[420674606,1776456036028,-1665.78,0.00032449,120]
[420674607,1776456036078,-1665.78,0.00032602,120]
[420674608,1776456036127,-1665.78,0.00032755,120]
[420674609,1776456036175,-150.0,0.00032788,120]
[420674610,1776456036222,-1137.0,0.000328,120]
[420674611,1776456036267,-1883.25,0.00032849,120]
[420674612,1776456036314,-1883.25,0.00032849,120]
[420674613,1776456036360,-160.93132421,0.00032849,120]
[420674614,1776456036405,-1882.35,0.00032849,120]
[420674615,1776456036452,-1882.35,0.00032849,120]
[420674616,1776456036497,-1919.7,0.00032849,120]
[420674617,1776456036544,-1919.7,0.00032849,120]
[420674618,1776456036595,-1557.0,0.00032849,120]
[420674619,1776456036646,-1557.0,0.00032849,120]
[420674620,1776456036695,-1368.9,0.00032849,120]
[420674621,1776456036743,-1368.9,0.00032849,120]
[420674622,1776456036793,-1831.5,0.00032849,120]
[420674623,1776456036841,-1460.25,0.00032849,120]
[420674624,1776456036891,-1460.25,0.00032849,120]
[420674625,1776456036942,-1441.35,0.00032849,120]
[420674626,1776456036993,-1441.35,0.00032849,120]
[420674627,1776456037045,-2234.7,0.00032849,120]
[420674628,1776456037096,-2234.7,0.00032849,120]
[420674629,1776456037150,-2271.6,0.00032849,120]
[420674630,1776456037203,-2024.1,0.00032849,120]
[420674631,1776456037257,-1475.62300542,0.00032849,120]
[420674632,1776456037311,-1475.62300542,0.00032849,120]
[420674633,1776456037365,-401.1356253,0.0003287,120]
[420674634,1776456037423,-1000.0,0.00032877,120]
[420674635,1776456037479,-600.0,0.00032877,120]
[420674636,1776456037535,-600.0,0.00032877,90]
[420674637,1776456037590,-600.0,0.00032877,120]
[420674638,1776456037643,-929.36122456,0.000329,120]
[420674639,1776456037694,-270.49,0.000329,120]
[420674640,1776456037744,-190.92,0.000329,120]
[420674641,1776456037794,-305.48,0.000329,120]
[420674642,1776456037846,-1665.78,0.00032908,120]
[420674643,1776456037897,-500.0,0.00032964,120]
[420674644,1776456037947,-8385.93482791,0.00033,120]
[420674645,1776456037998,-763.0,0.00033,120]
[420674646,1776456038049,-150.0,0.00033,120]
[420674647,1776456038100,-83950.9510685,0.00033,120]
[420674648,1776456038151,-25878.37042269,0.00033,120]
[420674649,1776456038198,-1026.87350403,0.00033,120]
[420674650,1776456038247,-1665.78,0.00033061,120]
[420674651,1776456038295,-600.0,0.00033151,120]
[420674652,1776456038343,-1665.78,0.00033214,120]
[420674653,1776456038392,-1665.78,0.00033367,120]
[420674654,1776456038440,-347.34,0.00033411,60]
[420674655,1776456038491,-3005.03619915,0.00033424,114]
[420674656,1776456038541,-1665.78,0.0003352,120]
[420674657,1776456038591,-825.0,0.00033539,90]
[420674658,1776456038641,-150.0,0.0003358,120]
[420674659,1776456038693,-500.0,0.00033581,120]
[420674660,1776456038739,-280.989025,0.00033602,60]
[420674661,1776456038786,-174.7577021,0.00033602,60]
[420674662,1776456038834,-1300.0,0.00033602,60]
[420674663,1776456038882,-1300.0,0.00033602,60]
[420674664,1776456038928,-1300.0,0.00033602,60]
[420674665,1776456038974,-1300.0,0.00033602,60]
[420674666,1776456039020,-162.5065471,0.00033602,60]
[420674667,1776456039066,-500.0,0.00033602,60]
[420674668,1776456039112,-1300.0,0.00033602,60]
[420674669,1776456039159,-405.0,0.00033602,60]
[420674670,1776456039207,-1800.0,0.00033602,60]
[420674671,1776456039254,-500.0,0.00033602,60]
[420674672,1776456039302,-500.0,0.00033602,60]
[420674673,1776456039349,-1300.0,0.00033602,60]
[420674674,1776456039398,-1800.0,0.00033602,60]
[420674675,1776456039445,-1300.0,0.00033602,60]
[420674676,1776456039494,-1800.0,0.00033602,60]
[420674677,1776456039542,-1300.0,0.00033602,60]
[420674678,1776456039590,-1800.0,0.00033602,60]
[420674679,1776456039639,-1300.0,0.00033602,60]
[420674680,1776456039688,-1800.0,0.00033602,60]
[420674681,1776456039736,-287.9370166,0.00033602,60]
[420674682,1776456039783,-1300.0,0.00033602,60]
[420674683,1776456039832,-1800.0,0.00033602,60]
[420674684,1776456039881,-1300.0,0.00033602,60]
[420674685,1776456039932,-1800.0,0.00033602,60]
[420674686,1776456039981,-1300.0,0.00033602,60]
[420674687,1776456040030,-1800.0,0.00033602,60]
[420674688,1776456040078,-800.0,0.00033602,60]
[420674689,1776456040123,-500.0,0.00033602,60]
[420674690,1776456040170,-1300.0,0.00033602,60]
[420674691,1776456040217,-1800.0,0.00033602,60]
[420674692,1776456040266,-800.0,0.00033602,60]
[420674693,1776456040312,-833.0394803,0.00033602,60]
[420674694,1776456040360,-500.0,0.00033602,60]
[420674695,1776456040406,-1300.0,0.00033602,60]
[420674696,1776456040451,-376.5142702,0.00033602,60]
[420674697,1776456040498,-1800.0,0.00033602,60]
[420674698,1776456040547,-800.0,0.00033602,60]
[420674699,1776456040596,-500.0,0.00033602,60]
[420674700,1776456040647,-1300.0,0.00033602,60]
[420674701,1776456040697,-1800.0,0.00033602,60]
[420674702,1776456040747,-800.0,0.00033602,60]
[420674703,1776456040797,-1300.0,0.00033602,60]
[420674704,1776456040847,-1800.0,0.00033602,60]
[420674705,1776456040897,-800.0,0.00033602,60]
[420674706,1776456040950,-1300.0,0.00033602,60]
[420674707,1776456041003,-1800.0,0.00033602,60]
[420674708,1776456041059,-800.0,0.00033602,60]
[420674709,1776456041107,-1300.0,0.00033602,60]
[420674710,1776456041156,-1800.0,0.00033602,60]
[420674711,1776456041203,-800.0,0.00033602,60]
[420674712,1776456041250,-1300.0,0.00033602,60]
[420674713,1776456041298,-1800.0,0.00033602,60]
[420674714,1776456041345,-800.0,0.00033602,60]
[420674715,1776456041392,-1300.0,0.00033602,60]
[420674716,1776456041440,-1800.0,0.00033602,60]
[420674717,1776456041487,-800.0,0.00033602,60]
[420674718,1776456041537,-1300.0,0.00033602,60]
[420674719,1776456041588,-1800.0,0.00033602,60]
[420674720,1776456041636,-500.0,0.00033602,60]
[420674721,1776456041687,-800.0,0.00033602,60]
[420674722,1776456041737,-1300.0,0.00033602,60]
[420674723,1776456041787,-1800.0,0.00033602,60]
[420674724,1776456041836,-800.0,0.00033602,60]
[420674725,1776456041886,-259.1820166,0.00033602,60]
[420674726,1776456041935,-1800.0,0.00033602,60]
[420674727,1776456041986,-1300.0,0.00033602,60]
[420674728,1776456042036,-500.0,0.00033602,60]
[420674729,1776456042084,-800.0,0.00033602,60]
[420674730,1776456042132,-1800.0,0.00033602,60]
[420674731,1776456042179,-1300.0,0.00033602,60]
[420674732,1776456042225,-500.0,0.00033602,60]
[420674733,1776456042273,-800.0,0.00033602,60]
[420674734,1776456042321,-1800.0,0.00033602,60]
[420674735,1776456042367,-1300.0,0.00033602,60]
[420674736,1776456042415,-500.0,0.00033602,60]
[420674737,1776456042462,-211.6981346,0.00033602,60]
[420674738,1776456042510,-500.0,0.00033602,60]
[420674739,1776456042560,-1800.0,0.00033602,60]
[420674740,1776456042610,-800.0,0.00033602,60]
[420674741,1776456042660,-1300.0,0.00033602,60]
[420674742,1776456042711,-500.0,0.00033602,60]
[420674743,1776456042759,-188.920485,0.00033602,60]
[420674744,1776456042808,-1800.0,0.00033602,60]
[420674745,1776456042856,-1300.0,0.00033602,60]
[420674746,1776456042903,-800.0,0.00033602,60]
[420674747,1776456042953,-500.0,0.00033602,60]
[420674748,1776456043003,-1800.0,0.00033602,60]
[420674749,1776456043051,-1300.0,0.00033602,60]
[420674750,1776456043100,-800.0,0.00033602,60]
[420674751,1776456043148,-406.2514621,0.00033602,60]
[420674752,1776456043196,-500.0,0.00033602,60]
[420674753,1776456043246,-1800.0,0.00033602,60]
[420674754,1776456043293,-2186.322434,0.00033602,60]
[420674755,1776456043342,-800.0,0.00033602,60]
[420674756,1776456043391,-500.0,0.00033602,60]
[420674757,1776456043444,-373.3886315,0.00033602,60]
[420674758,1776456043494,-500.0,0.00033602,60]
[420674759,1776456043545,-1800.0,0.00033602,60]
[420674760,1776456043594,-800.0,0.00033602,60]
[420674761,1776456043643,-500.0,0.00033602,60]
[420674762,1776456043691,-500.0,0.00033602,60]
[420674763,1776456043740,-1800.0,0.00033602,60]
[420674764,1776456043788,-800.0,0.00033602,60]
[420674765,1776456043837,-500.0,0.00033602,60]
[420674766,1776456043888,-500.0,0.00033602,60]
[420674767,1776456043938,-1800.0,0.00033602,60]
[420674768,1776456043987,-800.0,0.00033602,60]
[420674769,1776456044038,-500.0,0.00033602,60]
[420674770,1776456044086,-500.0,0.00033602,60]
[420674771,1776456044136,-2886.5250318,0.00033602,60]
[420674772,1776456044183,-500.0,0.00033602,60]
[420674773,1776456044233,-714.9252557,0.00033602,60]
[420674774,1776456044281,-500.0,0.00033602,60]
[420674775,1776456044331,-800.0,0.00033602,60]
[420674776,1776456044383,-500.0,0.00033602,60]
[420674777,1776456044433,-800.0,0.00033602,60]
[420674778,1776456044492,-500.0,0.00033602,60]
[420674779,1776456044554,-800.0,0.00033602,60]
[420674780,1776456044615,-500.0,0.00033602,60]
[420674781,1776456044677,-500.0,0.00033602,60]